fUST/lending_fUST_20260210
["ID","MTS","AMOUNT","RATE_DAILY","PERIOD"]
[404890511,1770653443055,-501.30978706,0.001,120]
[404890512,1770653443066,-538.0,0.001,120]
[404890513,1770653443076,-1112.40429712,0.001,120]
[404890514,1770653443086,-478.13597205,0.001,120]
[404890515,1770653443098,-200.0,0.00102375,120]
[404890516,1770653443108,-200.0,0.00102375,120]
[404890517,1770653443117,-200.0,0.00102375,120]
[404890518,1770653443127,-200.0,0.00106155,120]
[404890519,1770653443137,-200.0,0.00106155,120]
[404890520,1770653443147,-200.0,0.00106155,120]
[404890521,1770653443156,-1844.1,0.00107,30]
[404890522,1770653443166,-1000.0,0.00109,120]
[404890523,1770653443176,-1000.0,0.0011,120]
[404890524,1770653443186,-1020.91445773,0.0011,120]
[404890525,1770653443195,-554.53099238,0.0011,120]
[404890526,1770653443205,-413.21663302,0.001102,120]
[404890527,1770653443214,-747.78548872,0.001102,120]
[404890528,1770653443223,-173.94107029,0.001102,120]
[404890529,1770653443232,-426.77523154,0.001102,120]
[404890530,1770653443241,-440.22114767,0.001102,120]
[404890531,1770653443250,-181.23871551,0.001102,120]
[404890532,1770653443351,-173.86262802,0.001102,120]
[404890533,1770653443361,-526.86305715,0.001102,120]
[404890534,1770653443370,-189.63422793,0.001102,120]
[404890535,1770653443379,-436.27867404,0.001102,120]
[404890536,1770653443388,-166.31365596,0.001102,120]
[404890537,1770653443397,-415.64287192,0.001102,120]
[404890538,1770653443406,-445.26688584,0.001102,120]
[404890539,1770653443415,-1844.11,0.00111,30]
[404890540,1770653443424,-1562.11,0.00111,30]
[404890541,1770653443434,-2495.999999,0.001111,120]
[404890542,1770653443444,-200.0,0.00112,120]
[404890543,1770653443453,-11445.04957647,0.001125,2]
[404890544,1770653443463,-413.21663302,0.001135,120]
[404890545,1770653443472,-747.78548872,0.001135,120]
[404890546,1770653443481,-173.94107029,0.001135,120]
[404890547,1770653443490,-426.77523154,0.001135,120]
[404890548,1770653443499,-440.22114767,0.001135,120]
[404890549,1770653443508,-173.86262802,0.001135,120]
[404890550,1770653443517,-526.86305715,0.001135,120]
[404890551,1770653443527,-436.27867404,0.001135,120]
[404890552,1770653443536,-166.31365596,0.001135,120]
[404890553,1770653443545,-415.64287192,0.001135,120]
[404890554,1770653443554,-445.26688584,0.001135,120]
[404890555,1770653443563,-214.68,0.001168,120]
[404890556,1770653443572,-413.21663302,0.001169,120]
[404890557,1770653443581,-747.78548872,0.001169,120]
[404890558,1770653443590,-173.94107029,0.001169,120]
[404890559,1770653443599,-426.77523154,0.001169,120]
[404890560,1770653443608,-440.22114767,0.001169,120]
[404890561,1770653443617,-173.86262802,0.001169,120]
[404890562,1770653443626,-526.86305715,0.001169,120]
[404890563,1770653443636,-436.27867404,0.001169,120]
[404890564,1770653443648,-166.31365596,0.001169,120]
[404890565,1770653443657,-415.64287192,0.001169,120]
[404890566,1770653443667,-445.26688584,0.001169,120]
[404890567,1770653443676,-1000.0,0.00119,120]
[404890568,1770653443687,-829.42,0.00119382,30]
[404890569,1770653443696,-200.0,0.0012,120]
[404890570,1770653443707,-196.73084297,0.0012,120]
[404890571,1770653443717,-413.21663302,0.001204,120]
[404890572,1770653443729,-747.78548872,0.001204,120]
[404890573,1770653443740,-426.77523154,0.001204,120]
[404890574,1770653443749,-440.22114767,0.001204,120]
[404890575,1770653443759,-173.86262802,0.001204,120]
[404890576,1770653443768,-526.86305715,0.001204,120]
[404890577,1770653443777,-436.27867404,0.001204,120]
[404890578,1770653443787,-166.31365596,0.001204,120]
[404890579,1770653443797,-415.64287192,0.001204,120]
[404890580,1770653443806,-445.26688584,0.001204,120]
[404890581,1770653443815,-181.22353213,0.001214,120]
[404890582,1770653443825,-413.21663302,0.00124,120]
[404890583,1770653443834,-747.78548872,0.00124,120]
[404890584,1770653443847,-426.77523154,0.00124,120]
[404890585,1770653443856,-440.22114767,0.00124,120]
[404890586,1770653443866,-173.86262802,0.00124,120]
[404890587,1770653443876,-526.86305715,0.00124,120]
[404890588,1770653443886,-436.27867404,0.00124,120]
[404890589,1770653443896,-166.31365596,0.00124,120]
[404890590,1770653443905,-415.64287192,0.00124,120]
[404890591,1770653443915,-445.26688584,0.00124,120]
[404890592,1770653443924,-1000.0,0.00129,120]
[404890593,1770653443933,-1084.58,0.0013,120]
[404890594,1770653443943,-12206.51359286,0.00132125,2]
[404890595,1770653443953,-1658.83,0.00132173,30]
[404890596,1770653443963,-2008.69993775,0.0013496,120]
[404890597,1770653443973,-1844.1,0.00136,30]
[404890598,1770653443982,-280.501352,0.00136986,120]
[404890599,1770653443991,-1000.0,0.0014,120]
[404890600,1770653444000,-200.0,0.0014,120]
[404890601,1770653444010,-280.501352,0.00144196,120]
[404890602,1770653444020,-2488.25,0.00144964,30]
[404890603,1770653444029,-2806.01649928,0.00145325,120]
[404890604,1770653444038,-500.0,0.00149,120]
[404890605,1770653444048,-1352.000009,0.00149898,120]
[404890606,1770653444057,-148852.47183285,0.0015,120]
[404890607,1770653444067,-3303.64348382,0.0015,120]
[404890608,1770653444076,-196.54,0.00150685,90]
[404890609,1770653444087,-280.501352,0.00151406,120]
[404890610,1770653444100,-3317.67,0.00157755,30]
[404890611,1770653444110,-280.501352,0.00158616,120]
[404890612,1770653444119,-200.0,0.00164,120]
[404890613,1770653444129,-252.0,0.0016563,35]
[404890614,1770653444140,-2900.97630737,0.00165703,120]
[404890615,1770653444150,-280.501352,0.00165826,120]
[404890616,1770653444159,-151.0,0.00166451,35]
[404890617,1770653444169,-500.0,0.00169,120]
[404890618,1770653444179,-4147.08,0.00170546,30]
[404890619,1770653444190,-14623.02163186,0.00171375,2]
[404890620,1770653444200,-280.501352,0.00173035,120]
[404890621,1770653444209,-1062.0,0.0018,120]
[404890622,1770653444219,-280.501352,0.00180245,120]
[404890623,1770653444229,-4976.5,0.00183337,30]
[404890624,1770653444239,-2386.0,0.00184706,70]
[404890625,1770653444248,-280.501352,0.00187455,120]
[404890626,1770653444257,-500.0,0.00189,120]
[404890627,1770653444267,-280.501352,0.00194665,120]
[404890628,1770653444277,-5805.92,0.00196128,30]
[404890629,1770653444287,-166.53,0.00197426,60]
[404890630,1770653444296,-250.0,0.00197928,30]
[404890631,1770653444306,-250.0,0.00197928,30]
[404890633,1770653444315,-250.0,0.00197928,30]
[404890635,1770653444324,-250.0,0.00197928,30]
[404890636,1770653444334,-250.0,0.00197928,30]
[404890638,1770653444344,-250.0,0.00197928,30]
[404890640,1770653444354,-250.0,0.00197928,30]
[404890642,1770653444363,-250.0,0.00197928,30]
[404890643,1770653444372,-250.0,0.00197928,30]
[404890644,1770653444381,-250.0,0.00197928,30]
[404890645,1770653444390,-250.0,0.00197928,30]
[404890646,1770653444404,-363.0,0.00197928,30]
[404890647,1770653444414,-3725.13375904,0.00198,120]
[404890648,1770653444423,-250.0,0.0019875,30]
[404890650,1770653444433,-250.0,0.0019875,30]
[404890652,1770653444442,-250.0,0.0019875,30]
[404890654,1770653444451,-250.0,0.0019875,30]
[404890655,1770653444461,-250.0,0.0019875,30]
[404890657,1770653444471,-250.0,0.0019875,30]
[404890659,1770653444480,-367.0,0.0019875,30]
[404890661,1770653444489,-4827.80041564,0.00199,30]
[404890662,1770653444499,-250.0,0.00199572,30]
[404890663,1770653444508,-250.0,0.00199572,30]
[404890664,1770653444518,-250.0,0.00199572,30]
[404890665,1770653444527,-250.0,0.00199572,30]
[404890666,1770653444537,-245.0,0.00199572,30]
[404890667,1770653444546,-1000.0,0.002,120]
[404890668,1770653444556,-200.0,0.002,120]
[404890669,1770653444566,-2563.0,0.002,120]
[404890670,1770653444576,-1000.0,0.002,120]
[404890671,1770653444586,-300.0,0.002,120]
[404890672,1770653444599,-150.0,0.002,14]
[404890673,1770653444611,-566.69518966,0.002,120]
[404890674,1770653444624,-741.7235317,0.002,120]
[404890675,1770653444636,-280.501352,0.00201875,120]
[404890676,1770653444652,-3725.13375904,0.00206933,120]
[404890678,1770653444664,-6635.33,0.00208919,30]
[404890680,1770653444674,-280.501352,0.00209084,120]
[404890681,1770653444686,-15506.19099722,0.00210625,2]
[404890682,1770653444698,-3725.13375904,0.00215867,120]
[404890683,1770653444710,-280.501352,0.00216294,120]
[404890684,1770653444723,-214.68,0.002168,120]
[404890685,1770653444734,-500.0,0.00219,120]
[404890686,1770653444746,-200.0,0.0022,120]
[404890687,1770653444758,-7464.75,0.0022171,30]
[404890688,1770653444769,-280.501352,0.00223504,120]
[404890689,1770653444782,-3725.13375904,0.002248,120]
[404890690,1770653444793,-604.76443382,0.0023,30]
[404890691,1770653444805,-17536.7617076,0.0023025,2]
[404890692,1770653444816,-280.501352,0.00230714,120]
[404890693,1770653444827,-3725.13375904,0.00233733,120]
[404890695,1770653444838,-8294.17,0.00234501,30]
[404890696,1770653444853,-280.501352,0.00237924,120]
[404890697,1770653444865,-1600.0,0.00238,120]
[404890698,1770653444877,-2000.0,0.0024,120]
[404890699,1770653444888,-200.0,0.0024,120]
[404890700,1770653444899,-55478.443082,0.0024,120]
[404890701,1770653444911,-3725.13375904,0.00242667,120]
[404890702,1770653444923,-280.501352,0.00245133,120]
[404890703,1770653444936,-1562.11,0.00246,30]
[404890704,1770653444947,-7177.49659831,0.002474,30]
[404890705,1770653444960,-3441321.81941443,0.002474,120]
[404890706,1770653444976,-34980.66437472,0.002474,120]
[404890711,1770653445235,-107.63488753,0.00033304,2]
[404890712,1770653445676,-345.42617249,0.00032158,2]
[404890713,1770653445687,-142.36511247,0.00033304,2]
[404890714,1770653445697,-319.40912471,0.0003955,11]
[404890715,1770653445708,-973.47863471,0.0003955,11]
[404890732,1770653446482,-433.6264185,0.0003955,11]
[404890733,1770653446495,-500.0,0.0003969,2]
[404890734,1770653446508,-456.50576714,0.00039768,2]
[404890735,1770653446520,-500.0,0.00039964,2]
[404890736,1770653446532,-616.0565816,0.00040238,2]
[404890737,1770653446544,-4493.60169793,0.002474,120]
[404890738,1770653446724,-437740.77600217,0.002474,120]
[404890739,1770653446737,-14998.12126918,0.002474,120]
[404890740,1770653446875,-1344.3000481,0.002474,120]
[404890741,1770653446887,-2066.88947646,0.002474,120]
[404890742,1770653446902,-1604.13938647,0.002474,120]
[404890746,1770653546301,741.97989042,0.0003,2]
[404890747,1770653564846,650.495057,0.0003,2]
[404890749,1770653579403,-193.72786385,0.00031355,2]
[404890750,1770653579427,-500.0,0.00032157,2]
[404890751,1770653579452,-326.89948021,0.00032157,2]
[404890752,1770653579478,-541.45033162,0.00032157,2]
[404890753,1770653579504,-541.45033162,0.00032157,2]
[404890754,1770653579530,-541.45033162,0.00032157,2]
[404890755,1770653579558,-541.45033162,0.00032157,2]
[404890756,1770653579583,-541.45033162,0.00032157,2]
[404890757,1770653579608,-541.45033162,0.00032157,2]
[404890758,1770653579635,-541.45033162,0.00032157,2]
[404890759,1770653579660,-541.45033162,0.00032157,2]
[404890760,1770653579688,-541.45033162,0.00032157,2]
[404890761,1770653579714,-541.45033162,0.00032157,2]
[404890762,1770653579741,-541.45033162,0.00032157,2]
[404890763,1770653579768,-541.45033162,0.00032157,2]
[404890764,1770653579793,-541.45033162,0.00032157,2]
[404890765,1770653579818,-541.45033162,0.00032157,2]
[404890766,1770653579842,-541.45033162,0.00032157,2]
[404890767,1770653579867,-541.45033162,0.00032157,2]
[404890768,1770653579895,-541.45033162,0.00032157,2]
[404890769,1770653579924,-541.45033162,0.00032157,2]
[404890770,1770653579950,-541.45033162,0.00032157,2]
[404890771,1770653579975,-541.45033162,0.00032157,2]
[404890772,1770653580000,-541.45033162,0.00032157,2]
[404890773,1770653580026,-541.45033162,0.00032157,2]
[404890774,1770653580052,-541.45033162,0.00032157,2]
[404890775,1770653580078,-541.45033162,0.00032157,2]
[404890776,1770653580104,-541.45033162,0.00032157,2]
[404890777,1770653580129,-541.45033162,0.00032157,2]
[404890778,1770653580156,-541.45033162,0.00032157,2]
[404890779,1770653580181,-541.45033162,0.00032157,2]
[404890780,1770653580207,-541.45033162,0.00032157,2]
[404890781,1770653580232,-541.45033162,0.00032157,2]
[404890782,1770653580258,-541.45033162,0.00032157,2]
[404890783,1770653580284,-541.45033162,0.00032157,2]
[404890784,1770653580309,-541.45033162,0.00032157,2]
[404890785,1770653580334,-541.45033162,0.00032157,2]
[404890786,1770653580359,-541.45033162,0.00032157,2]
[404890787,1770653580384,-541.45033162,0.00032157,2]
[404890788,1770653580408,-541.45033162,0.00032157,2]
[404890789,1770653580433,-541.45033162,0.00032157,2]
[404890790,1770653580458,-541.45033162,0.00032157,2]
[404890791,1770653580482,-541.45033162,0.00032157,2]
[404890792,1770653580508,-541.45033162,0.00032157,2]
[404890793,1770653580533,-541.45033162,0.00032157,2]
[404890794,1770653580558,-541.45033162,0.00032157,2]
[404890795,1770653580584,-541.45033162,0.00032157,2]
[404890796,1770653580611,-541.45033162,0.00032157,2]
[404890797,1770653580637,-541.45033162,0.00032157,2]
[404890798,1770653580663,-541.45033162,0.00032157,2]
[404890799,1770653580692,-541.45033162,0.00032157,2]
[404890800,1770653580719,-541.45033162,0.00032157,2]
[404890801,1770653580746,-541.45033162,0.00032157,2]
[404890802,1770653580775,-541.45033162,0.00032157,2]
[404890803,1770653580800,-541.45033162,0.00032157,2]
[404890804,1770653580826,-541.45033162,0.00032157,2]
[404890805,1770653580851,-541.45033162,0.00032157,2]
[404890806,1770653580877,-541.45033162,0.00032157,2]
[404890807,1770653580905,-541.45033162,0.00032157,2]
[404890808,1770653580931,-541.45033162,0.00032157,2]
[404890809,1770653580959,-541.45033162,0.00032157,2]
[404890810,1770653580985,-541.45033162,0.00032157,2]
[404890811,1770653581014,-500.0,0.00032157,2]
[404890812,1770653581039,-500.0,0.00032157,2]
[404890813,1770653581064,-500.0,0.00032157,2]
[404890814,1770653581090,-500.0,0.00032157,2]
[404890815,1770653581114,-500.0,0.00032157,2]
[404890816,1770653581139,-500.0,0.00032157,2]
[404890817,1770653581165,-500.0,0.00032157,2]
[404890818,1770653581190,-500.0,0.00032157,2]
[404890819,1770653581215,-500.0,0.00032157,2]
[404890820,1770653581239,-500.0,0.00032157,2]
[404890821,1770653581269,-500.0,0.00032157,2]
[404890822,1770653581293,-500.0,0.00032157,2]
[404890823,1770653581317,-500.0,0.00032157,2]
[404890824,1770653581341,-500.0,0.00032157,2]
[404890825,1770653581365,-500.0,0.00032157,2]
[404890826,1770653581388,-500.0,0.00032157,2]
[404890827,1770653581412,-500.0,0.00032157,2]
[404890828,1770653581435,-500.0,0.00032157,2]
[404890829,1770653581458,-500.0,0.00032157,2]
[404890830,1770653581482,-500.0,0.00032157,2]
[404890831,1770653581506,-500.0,0.00032157,2]
[404890832,1770653581529,-500.0,0.00032157,2]
[404890833,1770653581553,-500.0,0.00032157,2]
[404890834,1770653581578,-500.0,0.00032157,2]
[404890835,1770653581602,-500.0,0.00032157,2]
[404890836,1770653581712,-500.0,0.00032157,2]
[404890837,1770653581737,-500.0,0.00032157,2]
[404890838,1770653581763,-500.0,0.00032157,2]
[404890839,1770653581787,-500.0,0.00032157,2]
[404890840,1770653581811,-500.0,0.00032157,2]
[404890841,1770653581835,-500.0,0.00032157,2]
[404890842,1770653581860,-500.0,0.00032157,2]
[404890843,1770653581884,-500.0,0.00032157,2]
[404890844,1770653581908,-500.0,0.00032157,2]
[404890845,1770653581932,-500.0,0.00032157,2]
[404890846,1770653581957,-500.0,0.00032157,2]
[404890847,1770653581981,-500.0,0.00032157,2]
[404890848,1770653582004,-500.0,0.00032157,2]
[404890849,1770653582028,-500.0,0.00032157,2]
[404890850,1770653582052,-500.0,0.00032157,2]
[404890851,1770653582076,-500.0,0.00032157,2]
[404890852,1770653582099,-500.0,0.00032157,2]
[404890853,1770653582122,-500.0,0.00032157,2]
[404890854,1770653582146,-500.0,0.00032157,2]
[404890855,1770653582169,-500.0,0.00032157,2]
[404890856,1770653582193,-500.0,0.00032157,2]
[404890857,1770653582217,-500.0,0.00032157,2]
[404890858,1770653582242,-500.0,0.00032157,2]
[404890859,1770653582266,-500.0,0.00032157,2]
[404890860,1770653582291,-500.0,0.00032157,2]
[404890861,1770653582316,-500.0,0.00032157,2]
[404890862,1770653582340,-500.0,0.00032157,2]
[404890863,1770653582364,-500.0,0.00032157,2]
[404890864,1770653582388,-500.0,0.00032157,2]
[404890865,1770653582412,-500.0,0.00032157,2]
[404890866,1770653582437,-500.0,0.00032157,2]
[404890867,1770653582461,-500.0,0.00032157,2]
[404890868,1770653582485,-500.0,0.00032157,2]
[404890869,1770653582510,-500.0,0.00032157,2]
[404890870,1770653582534,-500.0,0.00032157,2]
[404890871,1770653582559,-184.26305626,0.00032157,2]
[404890872,1770653582584,-674.17065384,0.00032157,2]
[404890873,1770653582608,-674.17065384,0.00032157,2]
[404890874,1770653582632,-674.17065384,0.00032157,2]
[404890875,1770653582658,-674.17065384,0.00032157,2]
[404890876,1770653582685,-674.17065384,0.00032157,2]
[404890877,1770653582709,-674.17065384,0.00032157,2]
[404890878,1770653582736,-674.17065384,0.00032157,2]
[404890879,1770653582762,-674.17065384,0.00032157,2]
[404890880,1770653582787,-674.17065384,0.00032157,2]
[404890881,1770653582812,-674.17065384,0.00032157,2]
[404890882,1770653582837,-674.17065384,0.00032157,2]
[404890883,1770653582861,-674.17065384,0.00032157,2]
[404890884,1770653582886,-674.17065384,0.00032157,2]
[404890885,1770653582913,-674.17065384,0.00032157,2]
[404890886,1770653582938,-674.17065384,0.00032157,2]
[404890887,1770653582963,-674.17065384,0.00032157,2]
[404890888,1770653582988,-674.17065384,0.00032157,2]
[404890889,1770653583014,-674.17065384,0.00032157,2]
[404890890,1770653583045,-674.17065384,0.00032157,2]
[404890891,1770653583070,-674.17065384,0.00032157,2]
[404890892,1770653583096,-674.17065384,0.00032157,2]
[404890893,1770653583123,-674.17065384,0.00032157,2]
[404890894,1770653583149,-674.17065384,0.00032157,2]
[404890895,1770653583177,-674.17065384,0.00032157,2]
[404890896,1770653583204,-674.17065384,0.00032157,2]
[404890897,1770653583230,-674.17065384,0.00032157,2]
[404890898,1770653583257,-674.17065384,0.00032157,2]
[404890899,1770653583283,-674.17065384,0.00032157,2]
[404890900,1770653583308,-674.17065384,0.00032157,2]
[404890901,1770653583335,-674.17065384,0.00032157,2]
[404890902,1770653583363,-674.17065384,0.00032157,2]
[404890903,1770653583389,-674.17065384,0.00032157,2]
[404890904,1770653583414,-674.17065384,0.00032157,2]
[404890905,1770653583445,-674.17065384,0.00032157,2]
[404890906,1770653583471,-674.17065384,0.00032157,2]
[404890907,1770653583497,-674.17065384,0.00032157,2]
[404890908,1770653583522,-674.17065384,0.00032157,2]
[404890909,1770653583548,-674.17065384,0.00032157,2]
[404890910,1770653583573,-674.17065384,0.00032157,2]
[404890911,1770653583599,-674.17065384,0.00032157,2]
[404890912,1770653583624,-674.17065384,0.00032157,2]
[404890913,1770653583650,-674.17065384,0.00032157,2]
[404890914,1770653583679,-674.17065384,0.00032157,2]
[404890915,1770653583705,-674.17065384,0.00032157,2]
[404890916,1770653583732,-674.17065384,0.00032157,2]
[404890917,1770653583757,-674.17065384,0.00032157,2]
[404890918,1770653583782,-536.03582831,0.00032157,2]
[404890919,1770653583808,-674.17065384,0.00032157,2]
[404890920,1770653583833,-536.03582831,0.00032157,2]
[404890921,1770653583858,-674.17065384,0.00032157,2]
[404890922,1770653583884,-536.03582831,0.00032157,2]
[404890923,1770653583910,-674.17065384,0.00032157,2]
[404890924,1770653583936,-536.03582831,0.00032157,2]
[404890925,1770653583963,-536.03582831,0.00032157,2]
[404890926,1770653583990,-674.17065384,0.00032157,2]
[404890927,1770653584017,-536.03582831,0.00032157,2]
[404890928,1770653584042,-536.03582831,0.00032157,2]
[404890929,1770653584069,-674.17065384,0.00032157,2]
[404890930,1770653584187,-536.03582831,0.00032157,2]
[404890931,1770653584216,-674.17065384,0.00032157,2]
[404890932,1770653584242,-536.03582831,0.00032157,2]
[404890933,1770653584269,-536.03582831,0.00032157,2]
[404890934,1770653584296,-674.17065384,0.00032157,2]
[404890935,1770653584322,-536.03582831,0.00032157,2]
[404890936,1770653584347,-536.03582831,0.00032157,2]
[404890937,1770653584372,-674.17065384,0.00032157,2]
[404890938,1770653584398,-536.03582831,0.00032157,2]
[404890939,1770653584424,-536.03582831,0.00032157,2]
[404890940,1770653584451,-536.03582831,0.00032157,2]
[404890941,1770653584477,-536.03582831,0.00032157,2]
[404890942,1770653584502,-536.03582831,0.00032157,2]
[404890943,1770653584528,-536.03582831,0.00032157,2]
[404890944,1770653584554,-536.03582831,0.00032157,2]
[404890945,1770653584580,-536.03582831,0.00032157,2]
[404890946,1770653584605,-536.03582831,0.00032157,2]
[404890947,1770653584631,-536.03582831,0.00032157,2]
[404890948,1770653584657,-536.03582831,0.00032157,2]
[404890949,1770653584684,-536.03582831,0.00032157,2]
[404890950,1770653584711,-536.03582831,0.00032157,2]
[404890951,1770653584737,-536.03582831,0.00032157,2]
[404890952,1770653584763,-536.03582831,0.00032157,2]
[404890953,1770653584788,-536.03582831,0.00032157,2]
[404890954,1770653584814,-536.03582831,0.00032157,2]
[404890955,1770653584840,-536.03582831,0.00032157,2]
[404890956,1770653584865,-500.0,0.00032157,2]
[404890957,1770653584890,-500.0,0.00032157,2]
[404890958,1770653584916,-169.85976607,0.00032157,2]
[404890959,1770653584942,-500.0,0.00032157,2]
[404890960,1770653584968,-500.0,0.00032157,2]
[404890961,1770653584995,-500.0,0.00032157,2]
[404890962,1770653585021,-348.16160071,0.00032157,2]
[404890963,1770653585047,-500.0,0.00032157,2]
[404890964,1770653585073,-500.0,0.00032157,2]
[404890965,1770653585099,-500.0,0.00032157,2]
[404890966,1770653585125,-500.0,0.00032157,2]
[404890967,1770653585151,-457.32585894,0.00032431,2]
[404890973,1770653612193,-400.0,0.00032156,2]
[404890974,1770653612218,-50000.0,0.00032157,2]
[404890975,1770653612243,-657.31638748,0.00032157,2]
[404890976,1770653612272,-595.59536477,0.00032157,2]
[404890977,1770653612298,-657.31638748,0.00032157,2]
[404890978,1770653612323,-657.31638748,0.00032157,2]
[404890979,1770653612348,-657.31638748,0.00032157,2]
[404890980,1770653612372,-657.31638748,0.00032157,2]
[404890981,1770653612397,-657.31638748,0.00032157,2]
[404890982,1770653612422,-657.31638748,0.00032157,2]
[404890983,1770653612447,-657.31638748,0.00032157,2]
[404890984,1770653612472,-657.31638748,0.00032157,2]
[404890985,1770653612499,-657.31638748,0.00032157,2]
[404890986,1770653612527,-657.31638748,0.00032157,2]
[404890987,1770653612553,-657.31638748,0.00032157,2]
[404890988,1770653612579,-657.31638748,0.00032157,2]
[404890989,1770653612603,-657.31638748,0.00032157,2]
[404890990,1770653612632,-657.31638748,0.00032157,2]
[404890991,1770653612658,-657.31638748,0.00032157,2]
[404890992,1770653612682,-657.31638748,0.00032157,2]
[404890993,1770653612711,-657.31638748,0.00032157,2]
[404890994,1770653612737,-657.31638748,0.00032157,2]
[404890995,1770653612762,-657.31638748,0.00032157,2]
[404890996,1770653612790,-657.31638748,0.00032157,2]
[404890997,1770653612814,-657.31638748,0.00032157,2]
[404890998,1770653612839,-657.31638748,0.00032157,2]
[404890999,1770653612865,-657.31638748,0.00032157,2]
[404891000,1770653612891,-657.31638748,0.00032157,2]
[404891001,1770653612916,-657.31638748,0.00032157,2]
[404891002,1770653612940,-657.31638748,0.00032157,2]
[404891003,1770653612966,-657.31638748,0.00032157,2]
[404891004,1770653612992,-657.31638748,0.00032157,2]
[404891005,1770653613021,-657.31638748,0.00032157,2]
[404891006,1770653613053,-657.31638748,0.00032157,2]
[404891007,1770653613080,-657.31638748,0.00032157,2]
[404891008,1770653613107,-657.31638748,0.00032157,2]
[404891009,1770653613134,-657.31638748,0.00032157,2]
[404891010,1770653613167,-657.31638748,0.00032157,2]
[404891011,1770653613307,-657.31638748,0.00032157,2]
[404891012,1770653669172,193.72786385,0.00032157,2]
[404891013,1770653768948,500.0,0.00013273,2]
[404891014,1770653795345,-394.0922956,0.00032159,2]
[404891015,1770653795366,-482.7206671,0.00032159,2]
[404891016,1770653795392,-500.0,0.0003315,2]
[404891017,1770653795415,-500.0,0.00033998,2]
[404891018,1770653796228,500.0,0.00013273,2]
[404891019,1770654008838,1000.0,0.00013821,2]
[404891020,1770654008889,500.0,0.00013273,2]
[404891021,1770654008945,821.21210442,0.00014368,2]
[404891022,1770654016428,581.42006378,0.00013273,2]
[404891023,1770654024290,500.0,0.00013699,2]
[404891024,1770654024347,1000.0,0.00014247,2]
[404891025,1770654024395,1000.0,0.00014795,2]
[404891026,1770654089171,150.0,0.00024658,2]
[404891027,1770654089203,301.54142767,0.00025205,2]
[404891030,1770654140955,10000.0,0.00030137,120]
[404891031,1770654161918,10000.0,0.00030137,120]
[404891044,1770654368961,500.0,0.00013273,2]
[404891045,1770654389301,500.0,0.00013273,2]
[404891102,1770654473585,1253.35145671,0.00025,15]
[404891103,1770654473612,132.54854329,0.00025,15]
[404891113,1770654507275,150.0,0.0002589,2]
[404891114,1770654507648,177.0,0.0002789,2]
[404891116,1770654517568,1042.40613179,0.0002465,2]
[404891120,1770654521447,8498.04532492,0.00021,2]
[404891121,1770654521471,7276.56878215,0.00021,2]
[404891123,1770654526481,-204.0,0.0002989,2]
[404891124,1770654526507,-250.47076368,0.00030883,2]
[404891125,1770654526534,-509.5427,0.00030883,2]
[404891126,1770654526560,-337.5473,0.00030883,3]
[404891127,1770654526589,-231.0,0.0003189,2]
[404891128,1770654526614,-370.64790042,0.00032999,7]
[404891129,1770654526642,-500.0,0.00032999,7]
[404891130,1770654526668,-427.57351119,0.00032999,7]
[404891131,1770654526696,-500.0,0.00032999,7]
[404891132,1770654526723,-500.0,0.00032999,7]
[404891133,1770654526749,-500.0,0.00032999,7]
[404891134,1770654526775,-500.0,0.00032999,7]
[404891135,1770654526800,-500.0,0.00032999,7]
[404891136,1770654526826,-500.0,0.00032999,7]
[404891137,1770654526850,-366.73734484,0.00032999,7]